fUSD/lending_fUSD_20240329
["ID","MTS","AMOUNT","RATE_DAILY","PERIOD"]
[320977698,1711726284575,-556.82,0.00052602,120]
[320977699,1711726284586,-500.0,0.00052602,120]
[320977700,1711726284597,-500.0,0.00052602,120]
[320977701,1711726284608,-500.0,0.00052602,120]
[320977702,1711726284619,-321.43632588,0.00052602,120]
[320977703,1711726284629,-541.66,0.00052602,120]
[320977704,1711726284639,-500.0,0.00052602,120]
[320977705,1711726284649,-500.0,0.00052602,120]
[320977706,1711726284660,-396.93869592,0.00052602,120]
[320977707,1711726284670,-500.0,0.00052602,120]
[320977708,1711726284680,-500.0,0.00052602,120]
[320977709,1711726284690,-500.0,0.00052602,120]
[320977710,1711726284700,-500.0,0.00052602,120]
[320977711,1711726284709,-358.73,0.00052602,120]
[320977712,1711726284719,-500.0,0.00052602,120]
[320977713,1711726284728,-500.0,0.00052602,120]
[320977714,1711726284738,-500.0,0.00052602,120]
[320977715,1711726284747,-500.0,0.00052602,120]
[320977716,1711726284756,-500.0,0.00052602,120]
[320977717,1711726284766,-524.41,0.00052602,120]
[320977718,1711726284775,-500.0,0.00052602,120]
[320977719,1711726284785,-593.93,0.00052602,120]
[320977720,1711726284795,-174.95,0.00052602,120]
[320977721,1711726284805,-2105.64,0.00052602,120]
[320977722,1711726284815,-500.0,0.00052602,120]
[320977723,1711726284824,-205.17391957,0.00052602,120]
[320977724,1711726284834,-832.0,0.00052602,120]
[320977725,1711726284843,-500.0,0.00052602,120]
[320977726,1711726284853,-500.0,0.00052602,120]
[320977727,1711726284862,-500.0,0.00052602,120]
[320977728,1711726284871,-500.0,0.00052602,120]
[320977729,1711726284881,-500.0,0.00052602,120]
[320977730,1711726284890,-500.0,0.00052602,120]
[320977731,1711726284899,-500.0,0.00052602,120]
[320977732,1711726284909,-500.0,0.00052602,120]
[320977733,1711726284918,-500.0,0.00052602,120]
[320977734,1711726284927,-500.0,0.00052602,120]
[320977735,1711726284936,-500.0,0.00052602,120]
[320977736,1711726284945,-500.0,0.00052602,120]
[320977737,1711726284954,-1095.45,0.00052602,120]
[320977738,1711726284964,-500.0,0.00052602,120]
[320977739,1711726284973,-500.0,0.00052602,120]
[320977740,1711726284982,-1919.57,0.00052602,120]
[320977741,1711726284991,-500.0,0.00052602,120]
[320977742,1711726285000,-500.0,0.00052602,120]
[320977743,1711726285009,-500.0,0.00052602,120]
[320977744,1711726285019,-790.31,0.00052602,120]
[320977745,1711726285028,-500.0,0.00052602,120]
[320977746,1711726285038,-500.0,0.00052602,120]
[320977747,1711726285047,-3250.79,0.00052602,120]
[320977748,1711726285056,-500.0,0.00052602,120]
[320977749,1711726285068,-543.43,0.00052602,120]
[320977750,1711726285077,-2026.92,0.00052602,120]
[320977751,1711726285086,-2794.01,0.00052602,120]
[320977752,1711726285096,-508.65,0.00052602,120]
[320977753,1711726285105,-543.18,0.00052602,120]
[320977754,1711726285114,-500.0,0.00052602,120]
[320977755,1711726285124,-725.25,0.00052602,120]
[320977756,1711726285133,-500.0,0.00052602,120]
[320977757,1711726285142,-500.0,0.00052602,120]
[320977758,1711726285151,-500.0,0.00052602,120]
[320977759,1711726285163,-500.0,0.00052602,120]
[320977760,1711726285173,-1985.65,0.00052602,120]
[320977761,1711726285182,-778.03,0.00052602,120]
[320977762,1711726285192,-966.8,0.00052602,120]
[320977763,1711726285201,-15575.03,0.00052602,120]
[320977764,1711726285210,-500.0,0.00052602,120]
[320977765,1711726285220,-1347.71,0.00052602,120]
[320977766,1711726285229,-500.0,0.00052602,120]
[320977767,1711726285241,-1542.42,0.00052602,120]
[320977768,1711726285252,-500.0,0.00052602,120]
[320977769,1711726285262,-415.16,0.00052602,120]
[320977770,1711726285272,-360.39068805,0.00052602,80]
[320977771,1711726285281,-1449.82,0.00052602,120]
[320977772,1711726285290,-2716.26,0.00052602,120]
[320977773,1711726285299,-764.96,0.00052602,120]
[320977774,1711726285309,-1663.53,0.00052602,120]
[320977775,1711726285320,-500.0,0.00052602,120]
[320977776,1711726285330,-1151.51,0.00052602,120]
[320977777,1711726285339,-500.0,0.00052602,120]
[320977778,1711726285348,-500.0,0.00052602,120]
[320977779,1711726285357,-769.64,0.00052602,120]
[320977780,1711726285366,-1016.62,0.00052602,120]
[320977781,1711726285375,-784.23,0.00052602,120]
[320977782,1711726285384,-500.0,0.00052602,120]
[320977783,1711726285393,-500.0,0.00052602,120]
[320977784,1711726285402,-1622.26,0.00052602,120]
[320977785,1711726285411,-500.0,0.00052602,120]
[320977786,1711726285421,-1424.61,0.00052602,120]
[320977787,1711726285430,-500.0,0.00052602,120]
[320977788,1711726285439,-815.78,0.00052602,120]
[320977789,1711726285449,-500.0,0.00052602,120]
[320977790,1711726285458,-500.0,0.00052602,120]
[320977791,1711726285468,-344.93,0.00052602,120]
[320977792,1711726285477,-992.25,0.00052602,120]
[320977793,1711726285487,-11718.94,0.00052602,120]
[320977794,1711726285496,-743.51,0.00052602,120]
[320977795,1711726285506,-765.17,0.00052602,120]
[320977796,1711726285516,-890.38,0.00052602,120]
[320977797,1711726285526,-553.36,0.00052602,120]
[320977798,1711726285535,-8521.15,0.00052602,120]
[320977799,1711726285545,-500.0,0.00052602,120]
[320977800,1711726285554,-1919.3,0.00052602,120]
[320977801,1711726285567,-648.88,0.00052602,120]
[320977802,1711726285577,-2207.99,0.00052602,120]
[320977803,1711726285587,-500.0,0.00052602,120]
[320977804,1711726285597,-500.0,0.00052602,120]
[320977805,1711726285606,-1309.66,0.00052602,120]
[320977806,1711726285616,-557.08,0.00052602,120]
[320977807,1711726285626,-1108.08,0.00052602,120]
[320977808,1711726285636,-1833.17,0.00052602,120]
[320977809,1711726285645,-607.25,0.00052602,120]
[320977810,1711726285655,-815.81,0.00052602,120]
[320977811,1711726285664,-862.41,0.00052602,120]
[320977812,1711726285673,-500.0,0.00052602,120]
[320977813,1711726285683,-1018.76,0.00052602,120]
[320977814,1711726285693,-500.0,0.00052602,120]
[320977815,1711726285702,-500.0,0.00052602,120]
[320977816,1711726285711,-1702.99,0.00052602,120]
[320977817,1711726285721,-1165.7,0.00052602,120]
[320977818,1711726285730,-1004.77,0.00052602,120]
[320977819,1711726285739,-696.93,0.00052602,120]
[320977820,1711726285748,-500.0,0.00052602,120]
[320977821,1711726285758,-500.0,0.00052602,120]
[320977822,1711726285767,-460.91497261,0.00052602,120]
[320977823,1711726285776,-1354.93,0.00052602,21]
[320977824,1711726285785,-500.0,0.00052602,120]
[320977825,1711726285795,-977.65,0.00052602,120]
[320977826,1711726285804,-1113.41,0.00052602,120]
[320977827,1711726285817,-500.0,0.00052602,120]
[320977828,1711726285826,-3333.95,0.00052602,120]
[320977829,1711726285836,-500.0,0.00052602,120]
[320977830,1711726285846,-572.67,0.00052602,120]
[320977831,1711726285855,-683.76,0.00052602,120]
[320977832,1711726285864,-7484.68,0.00052602,120]
[320977833,1711726285874,-1354.15,0.00052602,120]
[320977834,1711726285883,-1280.61,0.00052602,120]
[320977835,1711726285893,-500.0,0.00052602,120]
[320977836,1711726285902,-500.0,0.00052602,120]
[320977837,1711726285911,-553.1,0.00052602,120]
[320977838,1711726285921,-3298.9,0.00052602,120]
[320977839,1711726285930,-3130.3,0.00052602,120]
[320977840,1711726285939,-2135.45,0.00052602,120]
[320977841,1711726285949,-1018.52,0.00052602,120]
[320977842,1711726285959,-2568.4,0.00052602,120]
[320977843,1711726285968,-594.87,0.00052602,120]
[320977844,1711726285977,-824.29,0.00052602,120]
[320977845,1711726285987,-628.61,0.00052602,120]
[320977846,1711726285996,-1054.95,0.00052602,120]
[320977847,1711726286006,-947.76,0.00052602,120]
[320977848,1711726286015,-164.29161621,0.00052602,120]
[320977849,1711726286025,-805.33,0.00052602,120]
[320977850,1711726286034,-500.0,0.00052602,120]
[320977851,1711726286043,-500.0,0.00052602,120]
[320977852,1711726286053,-652.14,0.00052602,120]
[320977853,1711726286062,-1405.95,0.00052602,120]
[320977854,1711726286072,-500.0,0.00052602,120]
[320977855,1711726286082,-1684.07,0.00052602,120]
[320977856,1711726286091,-1222.42,0.00052602,120]
[320977857,1711726286100,-500.0,0.00052602,120]
[320977858,1711726286110,-500.0,0.00052602,120]
[320977859,1711726286119,-500.0,0.00052602,120]
[320977860,1711726286129,-647.43,0.00052602,120]
[320977861,1711726286138,-637.47,0.00052602,120]
[320977862,1711726286148,-929.07,0.00052602,120]
[320977863,1711726286160,-500.0,0.00052602,120]
[320977864,1711726286170,-1752.94,0.00052602,120]
[320977865,1711726286179,-506.23,0.00052602,120]
[320977866,1711726286188,-1482.27,0.00052602,120]
[320977867,1711726286198,-1080.07,0.00052602,120]
[320977868,1711726286322,-500.0,0.00052602,120]
[320977869,1711726286332,-500.0,0.00052602,120]
[320977870,1711726286341,-917.61,0.00052602,120]
[320977871,1711726286351,-824.53,0.00052602,120]
[320977872,1711726286361,-641.26,0.00052602,120]
[320977873,1711726286370,-579.18,0.00052602,120]
[320977874,1711726286380,-572.87,0.00052602,120]
[320977875,1711726286390,-1389.6,0.00052602,120]
[320977876,1711726286399,-975.56,0.00052602,120]
[320977877,1711726286410,-153.29621667,0.00052707,60]
[320977878,1711726286419,-5163.75530441,0.00052747,30]
[320977879,1711726286430,-1170.77280022,0.00052752,120]
[320977880,1711726286440,-302.06563,0.00052777,106]
[320977881,1711726286450,-314.06563,0.00052798,108]
[320977882,1711726286460,-364.8128,0.000528,2]
[320977883,1711726286470,-1059.0909,0.000528,2]
[320977884,1711726286480,-39827.2204,0.000528,2]
[320977885,1711726286491,-500.0,0.000528,2]
[320977886,1711726286501,-100000.0,0.000528,2]
[320977887,1711726286511,-5653.2157,0.000528,15]
[320977888,1711726286521,-844.2957,0.000528,2]
[320977889,1711726286530,-27132.3243,0.000528,2]
[320977890,1711726286541,-227.38888889,0.00052822,120]
[320977891,1711726286550,-188.31,0.00052828,120]
[320977892,1711726286560,-1493.20975127,0.00052837,120]
[320977893,1711726286574,-151.0,0.00052849,120]
[320977894,1711726286584,-434.42,0.00052862,2]
[320977895,1711726286594,-290.0,0.00052867,15]
[320977896,1711726286604,-373.0,0.00052867,15]
[320977897,1711726286615,-245.0,0.00052867,15]
[320977898,1711726286624,-500.0,0.00052876,120]
[320977899,1711726286634,-500.0,0.00052876,120]
[320977900,1711726286643,-500.0,0.00052876,120]
[320977901,1711726286653,-500.0,0.00052876,120]
[320977902,1711726286662,-500.0,0.00052876,2]
[320977903,1711726286671,-500.0,0.00052876,120]
[320977904,1711726286681,-151.07128202,0.00052876,120]
[320977905,1711726286690,-512.9901286,0.00052876,120]
[320977906,1711726286699,-500.0,0.00052876,120]
[320977907,1711726286708,-500.0,0.00052876,120]
[320977908,1711726286718,-500.0,0.00052876,2]
[320977909,1711726286727,-900.75,0.00052876,120]
[320977910,1711726286736,-500.0,0.00052876,120]
[320977911,1711726286746,-500.0,0.00052876,120]
[320977912,1711726286755,-500.0,0.00052876,120]
[320977913,1711726286764,-541.66,0.00052876,120]
[320977914,1711726286773,-500.0,0.00052876,120]
[320977915,1711726286783,-500.0,0.00052876,120]
[320977916,1711726286793,-500.0,0.00052876,120]
[320977917,1711726286802,-500.0,0.00052876,120]
[320977918,1711726286811,-500.0,0.00052876,120]
[320977919,1711726286823,-500.0,0.00052876,120]
[320977920,1711726286833,-500.0,0.00052876,120]
[320977921,1711726286842,-500.0,0.00052876,120]
[320977922,1711726286852,-210.92921237,0.00052876,120]
[320977923,1711726286862,-500.0,0.00052876,120]
[320977924,1711726286872,-522.34214842,0.00052876,120]
[320977925,1711726286883,-524.41,0.00052876,120]
[320977926,1711726286892,-500.0,0.00052876,120]
[320977927,1711726286902,-593.93,0.00052876,120]
[320977928,1711726286911,-174.95,0.00052876,120]
[320977929,1711726286920,-2105.64,0.00052876,120]
[320977930,1711726286930,-500.0,0.00052876,120]
[320977931,1711726286939,-832.0,0.00052876,120]
[320977932,1711726286949,-500.0,0.00052876,120]
[320977933,1711726286959,-500.0,0.00052876,120]
[320977934,1711726286968,-500.0,0.00052876,120]
[320977935,1711726286978,-500.0,0.00052876,120]
[320977936,1711726286988,-500.0,0.00052876,120]
[320977937,1711726286998,-500.0,0.00052876,120]
[320977938,1711726287009,-249.219,0.00052876,120]
[320977939,1711726287019,-500.0,0.00052876,120]
[320977940,1711726287029,-500.0,0.00052876,120]
[320977941,1711726287038,-500.0,0.00052876,120]
[320977942,1711726287048,-500.0,0.00052876,120]
[320977943,1711726287058,-500.0,0.00052876,120]
[320977944,1711726287071,-1095.45,0.00052876,120]
[320977945,1711726287080,-500.0,0.00052876,120]
[320977946,1711726287089,-500.0,0.00052876,120]
[320977947,1711726287099,-1919.57,0.00052876,120]
[320977948,1711726287109,-500.0,0.00052876,120]
[320977949,1711726287118,-269.11457774,0.00052876,120]
[320977950,1711726287127,-500.0,0.00052876,120]
[320977951,1711726287136,-790.31,0.00052876,120]
[320977952,1711726287146,-500.0,0.00052876,120]
[320977953,1711726287155,-500.0,0.00052876,120]
[320977954,1711726287167,-3250.79,0.00052876,120]
[320977955,1711726287176,-297.68733906,0.00052876,120]
[320977956,1711726287185,-543.43,0.00052876,120]
[320977957,1711726287195,-2026.92,0.00052876,120]
[320977958,1711726287205,-2794.01,0.00052876,120]
[320977959,1711726287215,-508.65,0.00052876,120]
[320977960,1711726287224,-543.18,0.00052876,120]
[320977961,1711726287234,-500.0,0.00052876,120]
[320977962,1711726287245,-725.25,0.00052876,120]
[320977963,1711726287254,-500.0,0.00052876,120]
[320977964,1711726287264,-500.0,0.00052876,120]
[320977965,1711726287274,-500.0,0.00052876,120]
[320977966,1711726287284,-500.0,0.00052876,120]
[320977967,1711726287294,-1985.65,0.00052876,120]
[320977968,1711726287303,-778.03,0.00052876,120]
[320977969,1711726287313,-966.8,0.00052876,120]
[320977970,1711726287324,-15575.03,0.00052876,120]
[320977971,1711726287334,-500.0,0.00052876,120]
[320977972,1711726287343,-1347.71,0.00052876,120]
[320977973,1711726287353,-500.0,0.00052876,120]
[320977974,1711726287362,-1542.42,0.00052876,120]
[320977975,1711726287372,-500.0,0.00052876,120]
[320977976,1711726287381,-1449.82,0.00052876,120]
[320977977,1711726287391,-2716.26,0.00052876,120]
[320977978,1711726287400,-764.96,0.00052876,120]
[320977979,1711726287409,-1663.53,0.00052876,120]
[320977980,1711726287419,-500.0,0.00052876,120]
[320977981,1711726287428,-1151.51,0.00052876,120]
[320977982,1711726287438,-500.0,0.00052876,120]
[320977983,1711726287447,-500.0,0.00052876,120]
[320977984,1711726287457,-769.64,0.00052876,120]
[320977985,1711726287467,-1016.62,0.00052876,120]
[320977986,1711726287476,-784.23,0.00052876,120]
[320977987,1711726287486,-500.0,0.00052876,120]
[320977988,1711726287496,-500.0,0.00052876,120]
[320977989,1711726287505,-1622.26,0.00052876,120]
[320977990,1711726287514,-500.0,0.00052876,120]
[320977991,1711726287524,-1424.61,0.00052876,120]
[320977992,1711726287533,-500.0,0.00052876,120]
[320977993,1711726287543,-815.78,0.00052876,120]
[320977994,1711726287553,-500.0,0.00052876,120]
[320977995,1711726287563,-500.0,0.00052876,120]
[320977996,1711726287573,-992.25,0.00052876,120]
[320977997,1711726287583,-11718.94,0.00052876,120]
[320977998,1711726287593,-743.51,0.00052876,120]
[320977999,1711726287603,-765.17,0.00052876,120]
[320978000,1711726287612,-890.38,0.00052876,120]
[320978001,1711726287621,-553.36,0.00052876,120]
[320978002,1711726287631,-8521.15,0.00052876,120]
[320978003,1711726287642,-500.0,0.00052876,120]
[320978004,1711726287652,-1919.3,0.00052876,120]
[320978005,1711726287662,-648.88,0.00052876,120]
[320978006,1711726287671,-2207.99,0.00052876,120]
[320978007,1711726287681,-500.0,0.00052876,120]
[320978008,1711726287691,-1309.66,0.00052876,120]
[320978009,1711726287700,-500.0,0.00052876,120]
[320978010,1711726287709,-557.08,0.00052876,120]
[320978011,1711726287718,-1108.08,0.00052876,120]
[320978012,1711726287727,-1833.17,0.00052876,120]
[320978013,1711726287737,-607.25,0.00052876,120]
[320978014,1711726287747,-815.81,0.00052876,120]
[320978015,1711726287756,-862.41,0.00052876,120]
[320978016,1711726287765,-500.0,0.00052876,120]
[320978017,1711726287774,-1018.76,0.00052876,120]
[320978018,1711726287784,-500.0,0.00052876,120]
[320978019,1711726287793,-500.0,0.00052876,120]
[320978020,1711726287803,-1702.99,0.00052876,120]
[320978021,1711726287812,-1004.77,0.00052876,120]
[320978022,1711726287822,-1165.7,0.00052876,120]
[320978023,1711726287831,-696.93,0.00052876,120]
[320978024,1711726287841,-500.0,0.00052876,120]
[320978025,1711726287855,-327.57572981,0.00052876,120]
[320978026,1711726287865,-1354.93,0.00052876,21]
[320978027,1711726287875,-500.0,0.00052876,120]
[320978028,1711726287884,-977.65,0.00052876,120]
[320978029,1711726287894,-1113.41,0.00052876,120]
[320978030,1711726287904,-500.0,0.00052876,120]
[320978031,1711726287913,-3333.95,0.00052876,120]
[320978032,1711726287923,-411.87,0.00052876,120]
[320978033,1711726287933,-572.67,0.00052876,120]
[320978034,1711726287943,-683.76,0.00052876,120]
[320978035,1711726287953,-7484.68,0.00052876,120]
[320978036,1711726287962,-1354.15,0.00052876,120]
[320978037,1711726288082,-1280.61,0.00052876,120]
[320978038,1711726288092,-500.0,0.00052876,120]
[320978039,1711726288102,-553.1,0.00052876,120]
[320978040,1711726288112,-3298.9,0.00052876,120]
[320978041,1711726288122,-3130.3,0.00052876,120]
[320978042,1711726288134,-2135.45,0.00052876,120]
[320978043,1711726288144,-1018.52,0.00052876,120]
[320978044,1711726288154,-2568.4,0.00052876,120]
[320978045,1711726288165,-594.87,0.00052876,120]
[320978046,1711726288176,-824.29,0.00052876,120]
[320978047,1711726288185,-628.61,0.00052876,120]
[320978048,1711726288194,-1054.95,0.00052876,120]
[320978049,1711726288204,-947.76,0.00052876,120]
[320978050,1711726288214,-805.33,0.00052876,120]
[320978051,1711726288224,-500.0,0.00052876,120]
[320978052,1711726288235,-500.0,0.00052876,120]
[320978053,1711726288244,-652.14,0.00052876,120]
[320978054,1711726288254,-500.0,0.00052876,120]
[320978055,1711726288264,-1684.07,0.00052876,120]
[320978056,1711726288274,-1222.42,0.00052876,120]
[320978057,1711726288283,-500.0,0.00052876,120]
[320978058,1711726288292,-500.0,0.00052876,120]
[320978059,1711726288303,-500.0,0.00052876,120]
[320978060,1711726288313,-647.43,0.00052876,120]
[320978061,1711726288323,-637.47,0.00052876,120]
[320978062,1711726288333,-929.07,0.00052876,120]
[320978063,1711726288343,-500.0,0.00052876,120]
[320978064,1711726288352,-1752.94,0.00052876,120]
[320978065,1711726288362,-506.23,0.00052876,120]
[320978066,1711726288371,-1482.27,0.00052876,120]
[320978067,1711726288381,-1080.07,0.00052876,120]
[320978068,1711726288391,-500.0,0.00052876,120]
[320978069,1711726288401,-500.0,0.00052876,120]
[320978070,1711726288411,-917.61,0.00052876,120]
[320978071,1711726288421,-824.53,0.00052876,120]
[320978072,1711726288431,-641.26,0.00052876,120]
[320978073,1711726288440,-579.18,0.00052876,120]
[320978074,1711726288450,-572.87,0.00052876,120]
[320978075,1711726288459,-1389.6,0.00052876,120]
[320978076,1711726288469,-975.56,0.00052876,120]
[320978077,1711726288478,-373.0,0.00052877,15]
[320978078,1711726288487,-290.0,0.00052877,15]
[320978079,1711726288497,-150.5,0.00052877,15]
[320978080,1711726288506,-373.0,0.00052887,15]
[320978081,1711726288516,-290.0,0.00052887,15]
[320978082,1711726288525,-150.5,0.00052887,15]
[320978083,1711726288535,-169.05103537,0.0005289,120]
[320978084,1711726288545,-3255.4792072,0.00052897,2]
[320978085,1711726288555,-15633.51013509,0.00052899,7]
[320978086,1711726288565,-731179.57824327,0.000529,22]
[320978087,1711726288575,-211.02,0.000529,7]
[320978088,1711726288584,-150.44,0.000529,30]
[320978089,1711726288594,-2000.0,0.000529,15]
[320978090,1711726288604,-200.0,0.000529,15]
[320978091,1711726288613,-1696614.45041872,0.000529,22]
[320978092,1711726288623,-500.0,0.000529,19]
[320978093,1711726288632,-175.5936007,0.00052905,10]
[320978094,1711726288642,-154.09218812,0.00052913,10]
[320978095,1711726288652,-335.80220362,0.00052919,2]
[320978096,1711726288661,-175.16264914,0.00052944,10]
[320978097,1711726288670,-196.2357467,0.00052947,10]
[320978098,1711726288680,-568.63686156,0.00053,2]
[320978099,1711726288689,-289.20162277,0.00053,120]
[320978100,1711726288699,-10000.0,0.00053,120]
[320978101,1711726288709,-180.76,0.00053,120]
[320978102,1711726288719,-500.0,0.00053,7]
[320978103,1711726288728,-809.92,0.00053,7]
[320978104,1711726288738,-750.0,0.00053,3]
[320978105,1711726288747,-230.15013971,0.0005315,120]
[320978106,1711726288757,-500.0,0.0005315,120]
[320978107,1711726288767,-500.0,0.0005315,120]
[320978108,1711726288776,-500.0,0.0005315,120]
[320978109,1711726288786,-500.0,0.0005315,2]
[320978110,1711726288796,-500.0,0.0005315,120]
[320978111,1711726288806,-406.2,0.0005315,120]
[320978112,1711726288820,-500.0,0.0005315,120]
[320978113,1711726288830,-900.75,0.0005315,120]
[320978114,1711726288841,-500.0,0.0005315,120]
[320978115,1711726288861,-500.0,0.0005315,120]
[320978116,1711726288879,-500.0,0.0005315,120]
[320978117,1711726288897,-541.66,0.0005315,120]
[320978118,1711726288920,-500.0,0.0005315,120]
[320978119,1711726288937,-500.0,0.0005315,120]
[320978120,1711726288955,-500.0,0.0005315,120]
[320978121,1711726288973,-500.0,0.0005315,120]
[320978122,1711726288992,-500.0,0.0005315,120]
[320978123,1711726289014,-500.0,0.0005315,120]
[320978124,1711726289033,-500.0,0.0005315,120]
[320978125,1711726289055,-500.0,0.0005315,120]
[320978126,1711726289079,-500.0,0.0005315,120]
[320978127,1711726289095,-524.41,0.0005315,120]
[320978128,1711726289116,-500.0,0.0005315,120]
[320978129,1711726289137,-593.93,0.0005315,120]
[320978130,1711726289156,-174.95,0.0005315,120]
[320978131,1711726289173,-2105.64,0.0005315,120]
[320978132,1711726289190,-500.0,0.0005315,120]
[320978133,1711726289208,-832.0,0.0005315,120]
[320978134,1711726289227,-500.0,0.0005315,120]
[320978135,1711726289244,-500.0,0.0005315,120]
[320978136,1711726289260,-500.0,0.0005315,120]
[320978137,1711726289276,-500.0,0.0005315,120]
[320978138,1711726289293,-500.0,0.0005315,120]
[320978139,1711726289309,-500.0,0.0005315,120]
[320978140,1711726289328,-500.0,0.0005315,120]
[320978141,1711726289343,-500.0,0.0005315,120]
[320978142,1711726289359,-500.0,0.0005315,120]
[320978143,1711726289375,-500.0,0.0005315,120]
[320978144,1711726289390,-500.0,0.0005315,120]
[320978145,1711726289406,-1095.45,0.0005315,120]
[320978146,1711726289422,-500.0,0.0005315,120]
[320978147,1711726289439,-500.0,0.0005315,120]
[320978148,1711726289455,-1919.57,0.0005315,120]
[320978149,1711726289471,-500.0,0.0005315,120]
[320978150,1711726289486,-500.0,0.0005315,120]
[320978151,1711726289502,-790.31,0.0005315,120]
[320978152,1711726289519,-500.0,0.0005315,120]
[320978153,1711726289535,-412.52833044,0.0005315,120]
[320978154,1711726289552,-3250.79,0.0005315,120]
[320978155,1711726289569,-543.43,0.0005315,120]
[320978156,1711726289584,-2026.92,0.0005315,120]
[320978157,1711726289599,-2794.01,0.0005315,120]
[320978158,1711726289613,-508.65,0.0005315,120]
[320978159,1711726289627,-543.18,0.0005315,120]
[320978160,1711726289642,-500.0,0.0005315,120]
[320978161,1711726289657,-725.25,0.0005315,120]
[320978162,1711726289671,-500.0,0.0005315,120]
[320978163,1711726289686,-500.0,0.0005315,120]
[320978164,1711726289700,-500.0,0.0005315,120]
[320978165,1711726289715,-1985.65,0.0005315,120]
[320978166,1711726289730,-500.0,0.0005315,120]
[320978167,1711726289745,-778.03,0.0005315,120]
[320978168,1711726289760,-966.8,0.0005315,120]
[320978169,1711726289776,-15575.03,0.0005315,120]
[320978170,1711726289791,-500.0,0.0005315,120]
[320978171,1711726289807,-1347.71,0.0005315,120]
[320978172,1711726289825,-500.0,0.0005315,120]
[320978173,1711726289840,-1542.42,0.0005315,120]
[320978174,1711726289855,-500.0,0.0005315,120]
[320978175,1711726289870,-1449.82,0.0005315,120]
[320978176,1711726289884,-2716.26,0.0005315,120]
[320978177,1711726289899,-764.96,0.0005315,120]
[320978178,1711726289914,-1663.53,0.0005315,120]
[320978179,1711726289929,-500.0,0.0005315,120]
[320978180,1711726289946,-1151.51,0.0005315,120]
[320978181,1711726289962,-500.0,0.0005315,120]
[320978182,1711726289977,-500.0,0.0005315,120]
[320978183,1711726289992,-769.64,0.0005315,120]
[320978184,1711726290007,-1016.62,0.0005315,120]
[320978185,1711726290023,-784.23,0.0005315,120]
[320978186,1711726290038,-500.0,0.0005315,120]
[320978187,1711726290053,-500.0,0.0005315,120]
[320978188,1711726290072,-1622.26,0.0005315,120]
[320978189,1711726290088,-500.0,0.0005315,120]
[320978190,1711726290103,-1424.61,0.0005315,120]
[320978191,1711726290118,-500.0,0.0005315,120]
[320978192,1711726290134,-815.78,0.0005315,120]
[320978193,1711726290150,-500.0,0.0005315,120]
[320978194,1711726290325,-500.0,0.0005315,120]
[320978195,1711726290334,-992.25,0.0005315,120]
[320978196,1711726290345,-11718.94,0.0005315,120]
[320978197,1711726290354,-743.51,0.0005315,120]